Cogmind - Beta 11 @@@ ROGUE MODE // 2022.03.25 @ 08:29:33 Player: Happytimes Result: Self-destructed Performance ------------- Evolutions (4) 2000 Regions Visited (11) 2200 Robots Destroyed (87) 435 Value Destroyed (3941) 3941 Prototype IDs (13) 260 Alien Tech Used (0) 0 Bonus (2126) 2126 TOTAL SCORE: 10962 Bonus ------- High Alert Combat Kills 612 Follower Combat Kills 363 Entered Garrisons 400 Used RIF Installer 500 Aligned with FarCom 300 Friendly Fire -49 Cogmind --------- Core Integrity 571/850 Matter 285/300 Energy 100/100 System Corruption 5% Temperature Cool (0) Movement Hovering (80) Location -6/Garrison Parts ------- > --- POWER (2) -------- (None) > --- PROPULSION (5) --- Combat Airjet > --- UTILITY (5) ------ Small Storage Unit Microactuators Relay Coupler [Demolisher] (26) > --- WEAPON (3) ------- Impact Mace > --- INVENTORY (8) ---- Fission Core Relay Coupler [NC] (27) Relay Coupler [Grunt] (22) Relay Coupler [Sentry] (25) Relay Coupler [Specialist] (26) Relay Coupler [Hunter] (15) Rocket Array Improved Datajack Peak State ------------ > --- POWER ------------ Light Angular Momentum Engine Fission Core > --- PROPULSION ------- Aerolev Unit Cooled Airjet Cooled Airjet Cooled Airjet Cooled Airjet > --- UTILITY ---------- Small Storage Unit Improved Medium Armor Plating Hacking Suite Relay Coupler [NC] Relay Coupler [Grunt] > --- WEAPON ----------- Rocket Array Impact Mace Axe > --- INVENTORY -------- Fission Core Combat Airjet Microactuators Relay Coupler [Hunter] System Restoration Module Improved Datajack Powered Hammer Katana [Rating: 62] Favorites ----------- Power Light Ion Engine Engine Light Ion Engine Power Core Light Nuclear Core Propulsion Cooled Airjet Leg Potential Leg Wheel Wheel Hover Unit Cooled Airjet Flight Unit Flight Unit Utility Small Storage Unit Device Improved Heat Sink Storage Small Storage Unit Processor Target Analyzer Hackware Hacking Suite Protection Hardened Light Armor Plating Weapon AWS/Thermal Energy Gun AWS/Thermal Energy Cannon Particle Cannon Ballistic Gun Light Assault Rifle Launcher Grenade Launcher Impact Weapon Impact Mace Slashing Weapon Axe Piercing Weapon Heavy Pick Special Melee Weapon Improved Datajack Build | -11 -10 -10 -10 -9 -8 -7 -7 -7 -7 -6 -6 ------- Run | Scr Mat Min Exi Min Mat Fac Gar Fac Sto Fac Gar Slots Evolved 8 | . . . . . 4 2 . . . 2 . Power 1 | . . . . . . 1 . . . . . Propulsion 3 | . . . . . 1 1 . . . 1 . Utility 3 | . . . . . 2 . . . . 1 . Weapon 1 | . . . . . 1 . . . . . . Parts Attached 125 | 7 4 13 10 4 13 2 6 11 20 18 17 Power 16 | 2 . 3 . 1 . 1 2 3 1 2 1 Engine 8 | 2 . 3 . 1 . . . 1 . 1 . Core 8 | . . . . . . 1 2 2 1 1 1 Reactor . | . . . . . . . . . . . . Propulsion 32 | 2 . 4 2 2 7 1 1 3 5 3 2 Treads . | . . . . . . . . . . . . Leg 1 | . . . 1 . . . . . . . . Wheel 2 | 2 . . . . . . . . . . . Hover 24 | . . . . 2 7 1 1 3 5 3 2 Flight 5 | . . 4 1 . . . . . . . . Utility 28 | 1 2 3 4 1 2 . . 1 3 5 6 Device 14 | . 1 3 3 1 . . . 1 1 1 3 Storage 2 | 1 . . 1 . . . . . . . . Processor 1 | . . . . . 1 . . . . . . Hackware 6 | . . . . . . . . . 2 1 3 Protection 5 | . 1 . . . 1 . . . . 3 . Artifact . | . . . . . . . . . . . . Weapon 49 | 2 2 3 4 . 4 . 3 4 11 8 8 Energy Gun 4 | . . . 3 . 1 . . . . . . Energy Cannon 4 | . 2 1 1 . . . . . . . . Ballistic Gun 4 | 2 . . . . . . 1 . . 1 . Ballistic Cannon . | . . . . . . . . . . . . Launcher 14 | . . 2 . . 2 . 2 1 4 1 2 Special Weapon . | . . . . . . . . . . . . Impact Weapon 6 | . . . . . . . . . 3 1 2 Slashing Weapon 7 | . . . . . . . . 2 2 2 1 Piercing Weapon 1 | . . . . . . . . . . 1 . Special Melee Weapon 9 | . . . . . 1 . . 1 2 2 3 Unidentified Prototypes 13 | . . 1 4 . 1 . . . 4 3 . Parts Lost 22 | . . 1 . 1 . . 2 . 4 1 13 Power 4 | . . . . . . . . . 2 . 2 Propulsion 10 | . . 1 . . . . 2 . 1 1 5 Utility 6 | . . . . 1 . . . . 1 . 4 Weapon 2 | . . . . . . . . . . . 2 Highest Loss Streak 6 | . . 1 . 1 . . 1 . 2 1 6 To Critical Strikes . | . . . . . . . . . . . . Average Slot Usage (%) 86 | . 98 92 85 62 73 92 90 87 93 88 87 Engine 8 | . 14 14 14 14 9 7 5 2 . . 5 Core 3 | . . . . . . 7 9 11 14 2 6 Hover 16 | . . . . 15 23 30 29 26 29 32 25 Flight 9 | . . 27 27 1 . . . . . . . Device 7 | . 4 13 12 1 9 7 7 7 7 2 4 Storage 10 | . 14 14 13 14 9 7 7 7 7 6 6 Processor 1 | . . . . . 5 7 7 7 . . . Hackware 4 | . . . . . . . . . 7 19 15 Protection 2 | . 7 . . . 6 7 7 7 4 3 2 Energy Gun 3 | . . . 8 14 8 7 7 7 1 . . Energy Cannon 4 | . 26 12 4 . . . . . . . . Launcher 3 | . . 8 4 . . . 6 2 1 . . Impact Weapon 2 | . . . . . . . . . 8 10 3 Slashing Weapon 2 | . . . . . . . . 3 5 4 12 Special Melee Weapon 1 | . . . . . 2 7 . 1 1 3 2 Naked Turns . | . . . . . . . . . . . . Heaviest Build 44 | 13 23 18 17 19 27 30 32 32 33 39 44 Greatest Support 48 | 20 20 20 8 19 28 35 35 38 48 40 44 Greatest Overweight (x) 5 | . 1 3 2 2 5 . 1 1 . 1 1 Average Overweight (x) . | . . . 1 . . . . . . . . Largest Inventory Capacity 8 | 8 8 8 8 8 8 8 8 8 8 8 8 Average Capacity 7 | 7 8 8 7 8 8 8 8 8 8 8 8 Most Carried 8 | 5 6 8 8 8 8 6 8 8 8 8 8 Average Carried 5 | 1 4 7 7 6 7 5 6 7 7 6 7 Final Capacity 8 | 8 8 8 8 8 8 8 8 8 8 8 8 Final Carried 8 | 1 6 8 8 7 7 5 8 8 7 8 8 Class Distribution -------------------- 77% | Mutant 9% | Skirmisher 6% | Bothacker-Mutant 5% | Scavenger-Mutant Dominant Class ---------------- Mutant | -10/Materials Mutant | -10/Mines Mutant | -10/Exiles Mutant | -9/Mines Mutant | -8/Materials Mutant | -7/Factory Skirmisher | -7/Garrison Scavenger-Mutant | -7/Factory Scavenger-Mutant | -7/Storage Mutant | -6/Factory Bothacker-Mutant | -6/Garrison Resources | -11 -10 -10 -10 -9 -8 -7 -7 -7 -7 -6 -6 ----------- Run | Scr Mat Min Exi Min Mat Fac Gar Fac Sto Fac Gar Matter Collected 1896 | 178 92 158 39 138 100 . 346 196 231 175 243 Remotely . | . . . . . . . . . . . . Salvage Created 2710 | . 92 72 36 45 100 . 646 602 646 282 189 Parts 143 | . 3 14 . 2 10 . 33 35 34 2 10 Haulers Intercepted 6 | . . . . . . . . 1 4 1 . Recyclers Shooed 1 | . . . . . . . . . 1 . . Parts Field Recycled . | . . . . . . . . . . . . Retrieved Matter . | . . . . . . . . . . . . Parts Self-Destructed . | . . . . . . . . . . . . Prevented . | . . . . . . . . . . . . Kills | -11 -10 -10 -10 -9 -8 -7 -7 -7 -7 -6 -6 ------- Run | Scr Mat Min Exi Min Mat Fac Gar Fac Sto Fac Gar Combat Hostiles Destroyed 74 | . 2 6 1 3 1 . 22 11 16 3 9 Melee 11 | . . . . . . . . 2 6 . 3 Guns 22 | . . . 1 3 1 . 11 6 . . . Cannons 3 | . 2 1 . . . . . . . . . AOE 32 | . . 5 . . . . 10 3 8 . 6 Classes Destroyed 15 | . 1 1 . . 2 . 2 8 . 1 . Worker 1 | . . . . . . . . . . 1 . Builder 2 | . . . . . . . . 2 . . . Hauler 6 | . . . . . . . . 1 4 1 . Operator 1 | . . . . . . . . 1 . . . Watcher 3 | . . . . . 2 . . 1 . . . Swarmer 28 | . . 5 . 3 . . 7 . 7 . 6 Saboteur 3 | . . . . . . . 3 . . . . Grunt 30 | . 2 1 1 . . . 10 6 8 2 . Brawler 2 | . . . . . . . . 1 . . 1 Duelist 2 | . . . . . . . 2 . . . . Protector 1 | . . . . . . . . 1 . . . Sentry 3 | . . . . . 1 . . . 1 1 . Hunter 1 | . . . . . . . . 1 . . . Programmer 3 | . . . . . . . . 1 . . 2 Heavy 1 | . . . . . . . . 1 . . . Best Kill Streak 9 | . 2 3 1 3 1 . 7 9 9 2 7 Combat Bots Only 8 | . 2 3 1 3 1 . 7 6 8 2 7 Max Kills in Single Turn 3 | . 1 3 1 1 1 . 3 3 3 1 3 Gunslinging . | . . . . . . . . . . . . Exploded 3 | . . 3 . . . . 2 3 3 . 3 Melee 1 | . . . . . . . . 1 1 . 1 Uniques/NPCs Destroyed . | . . . . . . . . . . . . Combat | -11 -10 -10 -10 -9 -8 -7 -7 -7 -7 -6 -6 -------- Run | Scr Mat Min Exi Min Mat Fac Gar Fac Sto Fac Gar Damage Taken 3206 | . 39 157 64 60 30 . 296 335 733 280 1212 Core 690 | . 13 40 54 27 . . 14 60 203 29 250 Absorbed by Shields . | . . . . . . . . . . . . Regen/Repaired (Parts) 16 | . . . . . 16 . . . . . . Core Remaining (%) 76 | 100 . . . 46 100 . . . 60 . . Volleys Fired 63 | . 3 13 . . 3 . 28 6 6 . 4 Largest 2 | . 2 1 . . 1 . 1 1 1 . 1 Hottest 136 | . 136 68 . . 30 . 30 33 45 . 45 Shots Fired 209 | . 6 13 10 12 14 . 83 58 9 . 4 Gun 150 | . . . 10 12 11 . 62 52 3 . . Cannon 15 | . 6 9 . . . . . . . . . Launcher 44 | . . 4 . . 3 . 21 6 6 . 4 Special . | . . . . . . . . . . . . Kinetic 7 | . . . . . . . 7 . . . . Thermal 158 | . 6 9 10 12 11 . 55 52 3 . . Explosive 44 | . . 4 . . 3 . 21 6 6 . 4 Electromagnetic . | . . . . . . . . . . . . Robot Hit Streak 17 | . 5 6 11 6 17 . 16 12 2 . 2 Robot Miss Streak 5 | . . 3 . 2 . . 3 2 1 . 5 Penetration Max . | . . . . . . . . . . . . Secondary Targets . | . . . . . . . . . . . . Autonomous 144 | . . . 10 12 11 . 55 52 4 . . Shots Hit Robots 222 | . 5 6 10 8 12 . 47 53 23 30 28 Core Hits 130 | . 3 7 1 3 3 . 42 25 29 2 15 Critical Kills 2 | . . . . . . . . . 2 . . Critical Parts Destroyed 10 | . . . . . . . . . 4 6 . Critical Strikes 13 | . . . . . . . . . 6 6 1 Smash 12 | . . . . . . . . . 6 6 . Sever 1 | . . . . . . . . . . . 1 Melee Attacks 115 | . . . . . 1 . . 14 28 34 38 Impact 48 | . . . . . . . . . 21 19 8 Slashing 48 | . . . . . . . . 14 4 5 25 Piercing . | . . . . . . . . . . . . Sneak Attacks 21 | . . . . . 1 . . 4 5 10 1 Combat Hostiles 1 | . . . . . . . . . . . 1 Follow-up Attacks 15 | . . . . . . . . . 3 6 6 Damage Inflicted 9726 | . 104 402 263 224 317 . 2369 2187 1606 958 1296 Guns 3305 | . . . 263 224 317 . 1353 1118 30 . . Cannons 229 | . 104 125 . . . . . . . . . Explosions 2986 | . . 277 . . . . 1016 533 637 . 523 Melee 3206 | . . . . . . . . 536 939 958 773 Ramming . | . . . . . . . . . . . . Kinetic . | . . . . . . . . . . . . Thermal 3534 | . 104 125 263 224 317 . 1353 1118 30 . . Explosive 2986 | . . 277 . . . . 1016 533 637 . 523 Electromagnetic . | . . . . . . . . . . . . Impact 1752 | . . . . . . . . . 779 815 158 Slashing 1454 | . . . . . . . . 536 160 143 615 Piercing . | . . . . . . . . . . . . Highest Corruption 9 | . . 1 1 1 . . . 1 1 . 9 Average Corruption 1 | . . 1 1 1 . . . 1 1 . 4 Corruption Purged 5 | . . . . . . . . . . . 5 Corruption Blocked . | . . . . . . . . . . . . Effects 23 | . . 4 3 2 . . . 2 3 . 9 Message Errors 5 | . . 1 . 1 . . . . . . 3 Matter Fused 8 | . . 2 1 . . . . . 1 . 4 Heat Flow Errors 4 | . . . 1 1 . . . . 2 . . Energy Discharges 1 | . . . 1 . . . . . . . . Data Loss (minor) 3 | . . 1 . . . . . . . . 2 Data Loss (major) 2 | . . . . . . . . 2 . . . Overload Shots . | . . . . . . . . . . . . Overflow Damage 949 | . . 26 . . . . 11 61 355 412 84 Projectiles . | . . . . . . . . . . . . Explosions 57 | . . 26 . . . . 11 . 11 . 9 Melee 892 | . . . . . . . . 61 344 412 75 Knockbacks 5 | . . . . . . . . . . 5 . Impact 4 | . . . . . . . . . . 4 . Kinetic . | . . . . . . . . . . . . Secondary 1 | . . . . . . . . . . 1 . Self-Inflicted Damage 157 | . . 19 . . . . 59 . 20 . 59 Shots 8 | . . 1 . . . . 2 . 1 . 4 Rammed . | . . . . . . . . . . . . Targets Rammed . | . . . . . . . . . . . . Kicked . | . . . . . . . . . . . . Crushed . | . . . . . . . . . . . . Highest Temperature 288 | . 288 105 231 220 . . . . 103 . 3 Average Temperature 90 | . 161 38 119 117 . . . . 54 . 3 Received Heat Transfer 615 | . 24 18 36 . 18 . 72 54 192 117 84 Siege Activations . | . . . . . . . . . . . . Robots Corrupted . | . . . . . . . . . . . . Combat Hostiles . | . . . . . . . . . . . . Parts Fried 14 | . . . . . . . . . 6 7 1 Impact Corruptions 21 | . . . . . . . . . 8 11 2 Robots Melted 1 | . . . . . . . 1 . . . . Combat Hostiles 1 | . . . . . . . 1 . . . . Parts Melted 13 | . . . . . . . 6 7 . . . Heat Transferred 4662 | . 185 222 333 296 407 . 1739 1443 37 . . Parts Sabotaged . | . . . . . . . . . . . . Parts Stolen . | . . . . . . . . . . . . Parts Stripped . | . . . . . . . . . . . . Power Chain Reactions . | . . . . . . . . . . . . Missiles Intercepted . | . . . . . . . . . . . . Alert | -11 -10 -10 -10 -9 -8 -7 -7 -7 -7 -6 -6 ------- Run | Scr Mat Min Exi Min Mat Fac Gar Fac Sto Fac Gar Peak Influence 925 | . 57 234 . 93 159 14 925 826 924 417 639 Initial 485 | . . 22 . . . . 9 485 375 417 205 Average 200 | . 20 79 . 83 84 6 425 583 669 272 503 Maximum Alert Level 3 | . . 1 . . . . 3 3 3 2 2 Low Security (%) 66 | 100 100 98 . 100 100 100 28 . . 21 . Level 1 13 | . . 1 . . . . 38 . 9 74 28 Level 2 13 | . . . . . . . 4 75 44 3 71 Level 3 5 | . . . . . . . 29 24 45 . . Level 4 . | . . . . . . . . . . . . Level 5 . | . . . . . . . . . . . . High Security . | . . . . . . . . . . . . Max Security . | . . . . . . . . . . . . Squads Dispatched 13 | . 1 . . . 1 . . 4 5 2 . Investigation 3 | . 1 . . . . . . . 1 1 . Extermination . | . . . . . . . . . . . . Reinforcement 9 | . . . . . 1 . . 3 4 1 . Assault 1 | . . . . . . . . 1 . . . Garrison . | . . . . . . . . . . . . Intercept . | . . . . . . . . . . . . Searches Triggered . | . . . . . . . . . . . . Construction Impeded . | . . . . . . . . . . . . Haulers Reinforced 3 | . . . . . . . . 1 2 . . Active Scanning Responses . | . . . . . . . . . . . . Cargo Convoy Interrupts . | . . . . . . . . . . . . Stealth | -11 -10 -10 -10 -9 -8 -7 -7 -7 -7 -6 -6 --------- Run | Scr Mat Min Exi Min Mat Fac Gar Fac Sto Fac Gar Distress Signals 1 | . 1 . . . . . . . . . . Communications Jammed . | . . . . . . . . . . . . Distress Signals . | . . . . . . . . . . . . Times Spotted 125 | . 4 9 4 3 4 . 21 15 26 11 28 Peak Tracking Total 11 | . 4 3 3 3 2 . 6 5 11 5 6 Tactical Retreats 10 | . . . . . . . 1 . 1 3 5 Traps | -11 -10 -10 -10 -9 -8 -7 -7 -7 -7 -6 -6 ------- Run | Scr Mat Min Exi Min Mat Fac Gar Fac Sto Fac Gar Traps Triggered 12 | . 1 2 . . . . 5 . . 2 2 Indirectly . | . . . . . . . . . . . . Trap Hack Attempts . | . . . . . . . . . . . . Triggered . | . . . . . . . . . . . . Disarmed . | . . . . . . . . . . . . Reprogrammed . | . . . . . . . . . . . . Reused . | . . . . . . . . . . . . Traps Extracted . | . . . . . . . . . . . . Installed . | . . . . . . . . . . . . Triggered 1 | . . . . . . . . . . 1 . Machines | -11 -10 -10 -10 -9 -8 -7 -7 -7 -7 -6 -6 ---------- Run | Scr Mat Min Exi Min Mat Fac Gar Fac Sto Fac Gar Machines Disabled 12 | . . . 1 2 . . 3 . 4 . 2 Max in Single Turn 1 | . . . 1 1 . . 1 . 1 . 1 Garrison Access 1 | . . . . . . . . 1 . . . Garrison Relay 5 | . . . . . . . 3 . . . 2 Machines Sabotaged . | . . . . . . . . . . . . Garrisons Compromised . | . . . . . . . . . . . . Overloaded Fab Kills . | . . . . . . . . . . . . Hacking | -11 -10 -10 -10 -9 -8 -7 -7 -7 -7 -6 -6 --------- Run | Scr Mat Min Exi Min Mat Fac Gar Fac Sto Fac Gar Machines Accessed 19 | . 2 2 . . 3 1 . 4 4 3 . Terminals 10 | . 2 . . . 2 . . 2 3 1 . Fabricators 1 | . . . . . . . . . . 1 . Repair Stations 2 | . . . . . 1 . . 1 . . . Recycling Units 1 | . . . . . . . . . 1 . . Scanalyzers . | . . . . . . . . . . . . Garrison Access 3 | . . . . . . 1 . 1 . 1 . Total Hacks 34 | . 3 2 . . 7 2 . 6 8 6 . Successful 22 | . 2 2 . . 6 1 . 4 4 3 . Failed 12 | . 1 . . . 1 1 . 2 4 3 . Catastrophic 2 | . . . . . . . . 1 1 . . Database Lockouts . | . . . . . . . . . . . . Manual 1 | . . . 1 . . . . . . . . Terminals 18 | . 3 . . . 5 . . 2 5 3 . Fabricators 2 | . . . . . . . . . . 2 . Repair Stations 4 | . . . . . 2 . . 2 . . . Recycling Units 3 | . . . . . . . . . 3 . . Scanalyzers . | . . . . . . . . . . . . Garrison Access 5 | . . . . . . 2 . 2 . 1 . Terminal Hacks 13 | . 2 2 . . 4 . . 1 2 2 . Open Door 4 | . . 2 . . . . . . 2 . . Open DSF 1 | . . . . . . . . 1 . . . Level Access Points 1 | . . . . . 1 . . . . . . Unreport Threat 1 | . . . . . . . . . . 1 . Locate Traps 3 | . 1 . . . 1 . . . . 1 . Transport Status 1 | . 1 . . . . . . . . . . Zone Layout 2 | . . . . . 2 . . . . . . Fabricator Hacks . | . . . . . . . . . . . . Repair Station Hacks 3 | . . . . . 2 . . 1 . . . Scan Component 2 | . . . . . 1 . . 1 . . . Repair 1 | . . . . . 1 . . . . . . Recycling Unit Hacks 2 | . . . . . . . . . 2 . . Report Inventory 1 | . . . . . . . . . 1 . . Retrieve Components 1 | . . . . . . . . . 1 . . Scanalyzer . | . . . . . . . . . . . . Garrison Access Hacks 4 | . . . . . . 1 . 2 . 1 . Unlock Access 2 | . . . . . . 1 . . . 1 . Seal Access 1 | . . . . . . . . 1 . . . Coupler Status 1 | . . . . . . . . 1 . . . Unauthorized Hacks . | . . . . . . . . . . . . Terminals . | . . . . . . . . . . . . Fabricators . | . . . . . . . . . . . . Repair Stations . | . . . . . . . . . . . . Recycling Units . | . . . . . . . . . . . . Scanalyzers . | . . . . . . . . . . . . Garrison Access . | . . . . . . . . . . . . Data Cores Recovered . | . . . . . . . . . . . . Used . | . . . . . . . . . . . . Hacking Detections 10 | . 1 . . . 2 1 . 3 1 2 . Full Trace Events . | . . . . . . . . . . . . Feedback Events . | . . . . . . . . . . . . Feedback Blocked . | . . . . . . . . . . . . Robot Schematics Acquired . | . . . . . . . . . . . . Robots Built . | . . . . . . . . . . . . Authchips . | . . . . . . . . . . . . Time . | . . . . . . . . . . . . Total Robot Build Rating . | . . . . . . . . . . . . Part Schematics Acquired . | . . . . . . . . . . . . Parts Built . | . . . . . . . . . . . . Authchips . | . . . . . . . . . . . . Time . | . . . . . . . . . . . . Total Part Build Rating . | . . . . . . . . . . . . Parts Repaired 1 | . . . . . 1 . . . . . . Time 32 | . . . . . 32 . . . . . . Parts Recycled . | . . . . . . . . . . . . Recycled Matter . | . . . . . . . . . . . . Retrieved Matter . | . . . . . . . . . . . . Retrieved Components 3 | . . . . . . . . . 3 . . Parts Scanalyzed . | . . . . . . . . . . . . Part Schematics Acquired . | . . . . . . . . . . . . Parts Damaged . | . . . . . . . . . . . . Bothacking | -11 -10 -10 -10 -9 -8 -7 -7 -7 -7 -6 -6 ------------ Run | Scr Mat Min Exi Min Mat Fac Gar Fac Sto Fac Gar Used RIF Installer 1 | . . . . . . . 1 . . . . Robots Hacked 9 | . . . . . 1 . . . 1 5 2 Non-combat 6 | . . . . . 1 . . . 1 4 . Combat 3 | . . . . . . . . . . 1 2 Robot Hacks Applied 12 | . . . . . 1 . . . 1 6 4 no_distress 3 | . . . . . 1 . . . 1 1 . generate_echo 1 | . . . . . . . . . . 1 . map_walls 1 | . . . . . . . . . . 1 . map_earth 1 | . . . . . . . . . . 1 . locate_stockpiles 1 | . . . . . . . . . . 1 . go_dormant 1 | . . . . . . . . . . . 1 overwrite_iff 3 | . . . . . . . . . . 1 2 streamctrl_high 1 | . . . . . . . . . . . 1 Relay Couplers Released 20 | . . . . . . . 11 . . . 9 Machine Destruction 20 | . . . . . . . 11 . . . 9 Attached 5 | . . . . . . . . . 1 1 3 Fabnet Peak Effective % . | . . . . . . . . . . . . Robots Rewired . | . . . . . . . . . . . . Allies Hacked 1 | . . . . . . . . . . . 1 Hacks Repelled . | . . . . . . . . . . . . Allies | -11 -10 -10 -10 -9 -8 -7 -7 -7 -7 -6 -6 -------- Run | Scr Mat Min Exi Min Mat Fac Gar Fac Sto Fac Gar Total Allies 8 | . . 2 . 3 . . . . . 1 2 Largest Group 3 | . . 2 1 3 3 2 2 2 1 . 1 Highest-Rated Group 46 | . . 46 31 40 40 32 32 32 16 . 20 Highest-Rated Ally 31 | . . 31 31 16 16 16 16 16 16 . 20 Total Orders . | . . . . . . . . . . . . Ally Attacks 101 | . . 20 . . 4 . 34 24 7 2 10 Total Damage 1363 | . . 303 . . 58 . 361 268 72 . 301 Kills 14 | . . 4 . . 1 . 4 2 . . 3 Allies Corrupted . | . . . . . . . . . . . . Allies Melted . | . . . . . . . . . . . . Intel | -11 -10 -10 -10 -9 -8 -7 -7 -7 -7 -6 -6 ------- Run | Scr Mat Min Exi Min Mat Fac Gar Fac Sto Fac Gar Robot Analysis Total . | . . . . . . . . . . . . Derelict Logs Recovered 4 | . . 2 . 2 . . . . . . . Drone Launches . | . . . . . . . . . . . . Drone Recoveries . | . . . . . . . . . . . . Exploration | -11 -10 -10 -10 -9 -8 -7 -7 -7 -7 -6 -6 ------------- Run | Scr Mat Min Exi Min Mat Fac Gar Fac Sto Fac Gar Turns Passed 6422 | 1440 150 1279 422 440 408 30 492 387 234 597 543 Spaces Moved 4215 | 120 141 1000 279 304 410 30 544 336 254 523 274 Core 26 | 24 . . 1 . 1 . . . . . . Treads . | . . . . . . . . . . . . Legs . | . . . . . . . . . . . . Wheels 244 | 96 141 7 . . . . . . . . . Hover 2650 | . . . . 280 409 30 544 336 254 523 274 Flight 1295 | . . 993 278 24 . . . . . . . Fastest Speed 22 | 50 80 37 37 66 55 50 50 50 22 34 34 Average Speed 83 | 74 87 111 140 129 61 50 56 84 41 41 74 Slowest Speed 300 | 80 95 280 200 197 300 50 118 118 55 106 150 Overloaded Moves 18 | . . . . . . . . . 14 . 4 Propulsion Burnouts . | . . . . . . . . . . . . Robots Hopped . | . . . . . . . . . . . . Cave-ins Triggered . | . . . . . . . . . . . . Exploration Rate (%) 39 | 14 22 98 60 75 30 1 61 11 50 17 36 Regions Visited 11 Branch Regions 4 Pre-discovered Areas 2 | . . 1 . 1 . . . . . . . Known Exits Taken 3 | . . . . . 1 1 . . . 1 . Unknown Exits Taken 7 | 1 1 1 1 1 . . . 1 1 . . Scrap Searched 3 | . . 2 . 1 . . . . . . . Spaces Dug 18 | . . 4 . . . . . 14 . . . Terrain Destroyed 257 | . . 15 . 1 28 . 68 31 68 . 46 Melee . | . . . . . . . . . . . . Projectile 8 | . . . . 1 . . . 5 2 . . AOE 249 | . . 15 . . 28 . 68 26 66 . 46 Terrain Rammed . | . . . . . . . . . . . . Walls Destroyed . | . . . . . . . . . . . . Machines Disabled . | . . . . . . . . . . . . Actions | -11 -10 -10 -10 -9 -8 -7 -7 -7 -7 -6 -6 --------- Run | Scr Mat Min Exi Min Mat Fac Gar Fac Sto Fac Gar Total 6920 | 1469 160 1148 313 349 565 44 701 411 338 866 556 Wait 2192 | 1338 7 103 . 37 121 13 53 29 19 282 190 Move 4203 | 119 140 999 278 303 409 29 542 335 253 522 274 Hop . | . . . . . . . . . . . . Pick Up 70 | 5 6 9 9 2 7 . 5 5 7 9 6 Fast Attach 30 | 2 . 2 7 . 6 . . 3 2 7 1 Attach 41 | 4 1 4 3 3 6 2 2 . 6 6 4 Detach 6 | . . 2 . . 2 . 1 . . . 1 Swap 54 | 1 3 7 . 1 1 . 4 8 12 5 12 Drop 67 | . . 9 16 2 9 . 1 11 10 8 1 Fire 63 | . 3 13 . . 3 . 28 6 6 . 4 Melee 97 | . . . . . 1 . . 14 23 27 32 Ram . | . . . . . . . . . . . . Kick . | . . . . . . . . . . . . Crush . | . . . . . . . . . . . . Escape Stasis 91 | . . . . . . . 65 . . . 26 Rewire 6 | . . . . 1 . . . . . . 5 Trap . | . . . . . . . . . . . . Miscellaneous . | . . . . . . . . . . . . Route ------- -11/Scrapyard -10/Materials -10/Mines (discovered 3 exits: [*Mat x2] / *Exi) -10/Exiles -9/Mines -8/Materials (discovered 3 exits: *Fac x3) -7/Factory -7/Garrison (discovered 2 exits: *Fac x2) -7/Factory -7/Storage -6/Factory -6/Garrison History --------- Turn | Location | Event 11 | -11/Scrapyard | Discovered new exit (range 16) 1441 | -11/Scrapyard | Entered Materials 1442 | -10/Materials | Build established: Mutant 1581 | -10/Materials | Discovered new exit (range 13) 1591 | -10/Materials | Entered Mines 1656 | -10/Mines | Learned location of 2 exits from Materials 1662 | -10/Mines | Found a damaged Exp. Sensor Array with a note attached 1663 | -10/Mines | Found Prototype Device 1663 | -10/Mines | Identified Exp. Sensor Array 1707 | -10/Mines | Learned location of Storage (-7) 1963 | -10/Mines | Discovered new exit (range 13) 2182 | -10/Mines | Found the Drone Emporium 2191 | -10/Mines | Found Prototype Device 2227 | -10/Mines | Met a Derelict who couldn't figure out how to use a Trap Extractor 2348 | -10/Mines | Discovered new exit (range 9) 2361 | -10/Mines | Learned location of 1 exit from Materials 2857 | -10/Mines | Deemed a non-threat by the Exiles lab entrance 2859 | -10/Mines | Discovered new exit (range 5) 2870 | -10/Mines | Entered Exiles 2870 | -10/Exiles | Accompanied by 1 ally 2899 | -10/Exiles | Met 8R-AWN 2900 | -10/Exiles | Led the pair of lost Derelicts to a safe place 2918 | -10/Exiles | Met EX-HEX 2951 | -10/Exiles | Met EX-BIN 2965 | -10/Exiles | Aligned with FarCom system 2966 | -10/Exiles | Given EX-Vault access code 2999 | -10/Exiles | Opened EX-Vault 3010 | -10/Exiles | Found Prototype Energy Gun 3010 | -10/Exiles | Identified AWS/Thermal 3015 | -10/Exiles | Found Prototype Energy Cannon 3015 | -10/Exiles | Identified YOLO Cannon 3026 | -10/Exiles | Found Prototype Leg 3026 | -10/Exiles | Identified Potential Leg 3046 | -10/Exiles | Identified Decoy Drone Bay 3081 | -10/Exiles | Exiles lab attacked by MAIN.C 3276 | -10/Exiles | Discovered new exit (range 10) 3292 | -10/Exiles | Left Exiles lab with AWS/Thermal 3292 | -10/Exiles | Entered Mines 3304 | -9/Mines | Core integrity fell below 50% 3536 | -9/Mines | Learned Materials trap positions 3583 | -9/Mines | Assisted by bots powering up and referring to "LRC-V3" 3718 | -9/Mines | Met a Derelict testing a Signal Generator 3718 | -9/Mines | Discovered new exit (range 5) 3721 | -9/Mines | Found Signal Generator 3732 | -9/Mines | Entered Materials 3732 | -8/Materials | Accompanied by 3 allies 3732 | -8/Materials | Evolved 4 slots: Propulsion x1, Utility x2, Weapon x1 3733 | -8/Materials | Identified exit to Factory 3734 | -8/Materials | Loaded intel: 27 trap records 3776 | -8/Materials | Repaired Imp. Hover Unit 4140 | -8/Materials | Entered Factory 4140 | -7/Factory | Accompanied by 2 allies 4140 | -7/Factory | Evolved 2 slots: Power x1, Propulsion x1 4157 | -7/Factory | Identified exit to Garrison 4170 | -7/Factory | Entered Garrison 4170 | -7/Garrison | Accompanied by 2 allies 4179 | -7/Garrison | Triggered checkpoint 4270 | -7/Garrison | Triggered checkpoint 4316 | -7/Garrison | Triggered checkpoint 4337 | -7/Garrison | Triggered checkpoint 4340 | -7/Garrison | Discovered new exit (range 15) 4474 | -7/Garrison | Build established: Skirmisher 4534 | -7/Garrison | Triggered checkpoint 4541 | -7/Garrison | Destroyed 7 combat bots 4598 | -7/Garrison | Triggered checkpoint 4606 | -7/Garrison | Garrison Relay disabled 4635 | -7/Garrison | Discovered new exit (range 10) 4656 | -7/Garrison | Installed Relay Interface Framework 4662 | -7/Garrison | Entered Factory 4662 | -7/Factory | Accompanied by 2 allies 5021 | -7/Factory | Discovered new exit (range 5) 5049 | -7/Factory | Entered Storage 5049 | -7/Storage | Accompanied by 1 ally 5121 | -7/Storage | Destroyed 8 combat bots 5181 | -7/Storage | Build established: Scavenger-Mutant 5256 | -7/Storage | Found Prototype Launcher 5256 | -7/Storage | Identified Rocket Array 5279 | -7/Storage | Discovered new exit (range 9) 5283 | -7/Storage | Entered Factory 5283 | -6/Factory | Evolved 2 slots: Propulsion x1, Utility x1 5387 | -6/Factory | Found Prototype Launcher 5388 | -6/Factory | Identified Scatter Rocket Array 5546 | -6/Factory | Build established: Mutant 5796 | -6/Factory | Spotted B-75 Beast 5880 | -6/Factory | Identified exit to Garrison 5880 | -6/Factory | Entered Garrison 5888 | -6/Garrison | Triggered checkpoint 5998 | -6/Garrison | Garrison Relay disabled 6032 | -6/Garrison | Triggered checkpoint 6079 | -6/Garrison | Destroyed 7 combat bots 6136 | -6/Garrison | Garrison Relay disabled 6142 | -6/Garrison | Lost 3 parts (2n1u) 6298 | -6/Garrison | Build established: Bothacker-Mutant 6398 | -6/Garrison | Triggered checkpoint 6420 | -6/Garrison | Triggered checkpoint 6423 | -6/Garrison | Self-destructed Last Messages --------------- 06333_ System Restoration Module expended. 06339_ System corrupted: Matter fused (-6). 06348_ Acquired Relay Coupler [NC]. 06367_ Hacking Suite destroyed. 06373_ Destroyed Shock Rifle. 06373_ Katana follow-up attack on P-60 Hacker. 06373_ Destroyed Shock Rifle. 06373_ Impact Mace follow-up attack on P-60 Hacker. 06373_ Destroyed Mic. Nuclear Core. 06373_ P-60 Hacker system corrupted by crushing effect. 06382_ System corrupted: Component data lost. 06398_ Beams of light sweep through the air. An alarm sounds. 06404_ Axe destroyed. 06412_ Lgt. Angular Momentum Engine destroyed. 06414_ Cld. Airjet destroyed. 06415_ IJ QMRGF4UYD6